bitfinex/quotes_BTCUSD_20240803
["timestamp","ask_amount","ask_price","bid_price","bid_amount"]
[1722696176927,4.28337211,62201.0,62200.0,0.27999999]
[1722696177097,3.93985189,62201.0,62200.0,0.27999999]
[1722696177298,3.97854791,62201.0,62200.0,0.27999999]
[1722696177755,4.67854791,62201.0,62200.0,0.27999999]
[1722696177931,4.10742164,62201.0,62200.0,0.27999999]
[1722696178572,4.107558,62201.0,62200.0,0.27999999]
[1722696179729,3.72002,62201.0,62200.0,0.33999999]
[1722696179952,3.58107976,62201.0,62200.0,0.42299999]
[1722696180161,3.59107976,62201.0,62200.0,0.42299999]
[1722696180364,3.67728182,62201.0,62200.0,0.42299999]
[1722696180566,3.65044057,62201.0,62200.0,0.42299999]
[1722696180767,3.56427868,62201.0,62200.0,0.42299999]
[1722696181539,3.61899911,62201.0,62200.0,0.42299999]
[1722696181727,1.98399911,62201.0,62200.0,0.42299999]
[1722696182515,1.96999911,62201.0,62200.0,0.42299999]
[1722696182718,2.10199911,62201.0,62200.0,0.42299999]
[1722696182922,2.08799911,62201.0,62200.0,0.42299999]
[1722696183335,2.10199911,62201.0,62200.0,0.42299999]
[1722696183681,2.08799911,62201.0,62200.0,0.42299999]
[1722696184134,2.10099911,62201.0,62200.0,0.42299999]
[1722696184397,1.10288824,62201.0,62200.0,0.42299999]
[1722696184589,1.03845924,62201.0,62200.0,0.42299999]
[1722696185019,1.03845924,62201.0,62200.0,0.43967351]
[1722696185789,1.19922824,62201.0,62200.0,0.43967351]
[1722696186003,1.19922824,62201.0,62200.0,0.44058651]
[1722696186004,1.03845924,62201.0,62200.0,0.44058651]
[1722696186208,0.91545924,62201.0,62200.0,0.60135751]
[1722696186407,0.022,62201.0,62200.0,0.92290051]
[1722696186962,0.022,62201.0,62200.0,0.44058651]
[1722696186963,0.17945924,62201.0,62200.0,0.44058651]
[1722696187142,0.34022824,62201.0,62200.0,0.44058651]
[1722696187381,0.64876624,62201.0,62200.0,0.44058651]
[1722696187528,0.96130424,62201.0,62200.0,0.44058651]
[1722696187751,0.66776624,62201.0,62200.0,0.44058651]
[1722696187941,0.98930424,62201.0,62200.0,0.44058651]
[1722696188136,0.99130424,62201.0,62200.0,0.44058651]
[1722696188514,0.98430424,62201.0,62200.0,0.44058651]
[1722696188921,1.00130424,62201.0,62200.0,0.44058651]
[1722696189138,0.67976624,62201.0,62200.0,0.44058651]
[1722696189357,0.67276624,62201.0,62200.0,0.44058651]
[1722696190175,0.19045924,62201.0,62200.0,0.44058651]
[1722696190344,0.34122824,62201.0,62200.0,0.44058651]
[1722696190550,0.24722824,62201.0,62200.0,0.44058651]
[1722696190777,0.06545924,62201.0,62200.0,0.47168651]
[1722696190979,0.05945924,62201.0,62200.0,0.47168651]
[1722696191223,0.22022824,62201.0,62200.0,0.47168651]
[1722696191598,0.22522824,62201.0,62200.0,0.47168651]
[1722696191872,0.22122824,62201.0,62200.0,0.47168651]
[1722696192077,0.06645924,62201.0,62200.0,0.47168651]
[1722696192206,0.06345924,62201.0,62200.0,0.47168651]
[1722696192601,0.06545924,62201.0,62200.0,0.47168651]
[1722696193024,0.22622824,62201.0,62200.0,0.47168651]
[1722696195861,0.54776624,62201.0,62200.0,0.47168651]
[1722696196220,0.06545924,62201.0,62200.0,0.47168651]
[1722696196558,0.06545924,62201.0,62200.0,0.63245751]
[1722696196762,0.008,62201.0,62200.0,0.95400051]
[1722696196941,0.008,62201.0,62200.0,0.63245751]
[1722696197346,0.008,62201.0,62200.0,0.95400051]
[1722696198258,0.008,62201.0,62200.0,0.63245751]
[1722696199234,0.008,62201.0,62200.0,0.85400051]
[1722696199642,0.008,62201.0,62200.0,0.53245751]
[1722696199844,0.008,62201.0,62200.0,0.37168651]
[1722696200062,0.008,62201.0,62200.0,0.3732609]
[1722696200188,0.008,62201.0,62200.0,0.37168651]
[1722696200633,0.008,62201.0,62200.0,0.53245751]
[1722696200849,0.008,62201.0,62200.0,0.37168651]
[1722696201049,0.160768,62202.0,62200.0,0.37168651]
[1722696201254,0.160768,62202.0,62201.0,0.00157439]
[1722696201752,0.160768,62202.0,62201.0,0.0181719]
[1722696202004,0.160768,62202.0,62201.0,0.01659751]
[1722696202205,0.160768,62202.0,62201.0,0.0181719]
[1722696202377,0.170768,62202.0,62201.0,0.01659751]
[1722696202575,0.163768,62202.0,62201.0,0.0181719]
[1722696202774,0.163768,62202.0,62201.0,0.01659751]
[1722696202980,0.482301,62202.0,62201.0,0.01659751]
[1722696203206,0.160768,62202.0,62201.0,0.01659751]
[1722696204073,0.15745924,62203.0,62201.0,0.01659751]
[1722696204274,0.31822424,62203.0,62202.0,0.08257439]
[1722696204738,0.31822424,62203.0,62202.0,0.09759191]
[1722696205493,0.32922424,62203.0,62202.0,0.09759191]
[1722696205696,0.32222424,62203.0,62202.0,0.09759191]
[1722696205898,0.63975124,62203.0,62202.0,0.09759191]
[1722696206102,0.64675124,62203.0,62202.0,0.09859191]
[1722696206310,0.65075124,62203.0,62202.0,0.09859191]
[1722696207283,0.32922424,62203.0,62202.0,0.09859191]
[1722696207842,0.65075124,62203.0,62202.0,0.09859191]
[1722696209198,0.32922424,62203.0,62202.0,0.09859191]
[1722696212225,0.65075124,62203.0,62202.0,0.09859191]
[1722696215713,0.97227824,62203.0,62202.0,0.09859191]
[1722696215922,1.47818286,62203.0,62202.0,0.01759191]
[1722696216101,1.41278286,62203.0,62202.0,0.01759191]
[1722696216312,1.09125586,62203.0,62202.0,0.001]
[1722696216634,1.09125586,62203.0,62202.0,0.01759016]
[1722696216882,1.09125586,62203.0,62202.0,0.001]
[1722696217097,0.26435776,62203.0,62202.0,0.001]
[1722696217249,0.16845924,62203.0,62202.0,0.1590933]
[1722696217479,0.011,62203.0,62202.0,0.1590933]
[1722696217737,0.011,62203.0,62202.0,0.6413923]
[1722696217976,0.011,62203.0,62202.0,0.3198593]
[1722696218442,0.011,62203.0,62202.0,0.6413923]
[1722696219645,0.01183,62203.0,62202.0,0.6413923]
[1722696220123,0.01183,62203.0,62202.0,0.9629253]
[1722696221269,0.00083,62203.0,62202.0,0.9619253]
[1722696221666,0.00783,62203.0,62202.0,0.9619253]
[1722696222023,0.00083,62203.0,62202.0,0.9619253]
[1722696222239,0.00483,62203.0,62202.0,0.9619253]
[1722696223394,0.00483,62203.0,62202.0,0.6403923]
[1722696223820,0.00483,62203.0,62202.0,0.9619253]
[1722696224024,0.00583,62203.0,62202.0,0.6403923]
[1722696224400,0.00583,62203.0,62202.0,0.9619253]
[1722696224755,0.00583,62203.0,62202.0,0.65025957]
[1722696226088,0.00183,62203.0,62202.0,0.65025957]
[1722696226577,0.00083,62203.0,62202.0,0.65225957]
[1722696226953,0.00183,62203.0,62202.0,0.97779257]
[1722696227157,0.00183,62203.0,62202.0,0.65625957]
[1722696229696,0.00183,62203.0,62202.0,0.97779257]
[1722696232966,0.00183,62203.0,62202.0,0.65625957]
[1722696234218,0.00183,62203.0,62202.0,0.97779257]
[1722696239697,0.00183,62203.0,62202.0,0.65625957]
[1722696241289,0.00183,62203.0,62202.0,0.97779257]
[1722696254830,0.00183,62203.0,62202.0,1.0820015]
[1722696255280,0.00183,62203.0,62202.0,0.97779257]
[1722696256769,0.00183,62203.0,62202.0,0.65625957]
[1722696256971,0.00183,62203.0,62202.0,0.59575957]
[1722696257827,0.00183,62203.0,62202.0,0.91729257]
[1722696258287,0.00183,62203.0,62202.0,0.98279257]
[1722696258962,0.1465,62206.0,62205.0,0.813792]
[1722696259171,0.00083,62211.0,62210.0,0.955027]
[1722696259375,0.00083,62211.0,62210.0,1.43623961]
[1722696259581,0.00083,62211.0,62210.0,1.45277914]
[1722696260259,0.00083,62211.0,62210.0,1.44277914]
[1722696260679,0.00083,62211.0,62210.0,1.45277914]
[1722696261511,0.00083,62211.0,62210.0,1.44277914]
[1722696261735,0.00083,62211.0,62210.0,1.45277914]
[1722696262072,0.00083,62211.0,62210.0,1.46177914]
[1722696262073,0.00183,62211.0,62210.0,1.46177914]
[1722696262272,0.00183,62211.0,62210.0,1.4620371]
[1722696262685,0.00283,62211.0,62210.0,1.4740371]
[1722696264000,0.00283,62211.0,62210.0,1.4640371]
[1722696264591,0.00283,62211.0,62210.0,1.4740371]
[1722696265178,0.00283,62211.0,62210.0,1.36955753]
[1722696266041,0.00083,62219.0,62218.0,1.446525]
[1722696266215,0.1465,62230.0,62229.0,0.557989]
[1722696266417,0.0613,62234.0,62233.0,0.321372]
[1722696266619,0.0613,62234.0,62233.0,0.55390873]
[1722696267018,0.0613,62234.0,62233.0,0.87528073]
[1722696268071,0.0613,62234.0,62233.0,0.55390873]
[1722696268887,0.0613,62234.0,62233.0,0.87528073]
[1722696269084,0.0663,62234.0,62233.0,0.55490873]
[1722696269920,0.005,62234.0,62233.0,0.55490873]
[1722696270121,0.005,62234.0,62233.0,0.55590873]
[1722696270542,0.005,62234.0,62233.0,0.87728073]
[1722696270757,0.005,62234.0,62233.0,0.55590873]
[1722696270963,0.005,62234.0,62233.0,0.87728073]
[1722696271504,0.005,62234.0,62233.0,1.19865273]
[1722696271728,0.005,62234.0,62233.0,0.87628073]
[1722696271892,0.00083,62238.0,62237.0,0.482028]
[1722696272096,0.00083,62238.0,62237.0,0.537528]
[1722696272297,0.00083,62238.0,62237.0,0.550282]
[1722696272534,0.00083,62238.0,62237.0,0.55453333]
[1722696272753,0.00083,62238.0,62237.0,0.550282]
[1722696274652,0.00083,62238.0,62237.0,0.816134]
[1722696274856,0.00983,62238.0,62237.0,0.871634]
[1722696275280,0.00483,62238.0,62237.0,0.871634]
[1722696275544,0.00483,62238.0,62237.0,0.550282]
[1722696275743,0.00783,62238.0,62237.0,0.550282]
[1722696275953,0.97133,62238.0,62237.0,0.550282]
[1722696276160,0.96433,62238.0,62237.0,0.550282]
[1722696276599,0.96633,62238.0,62237.0,0.550282]
[1722696277792,0.97133,62238.0,62237.0,0.550282]
[1722696278087,0.96633,62238.0,62237.0,0.550282]
[1722696280096,0.96581174,62238.0,62237.0,0.550282]
[1722696283666,0.96581174,62238.0,62237.0,0.494782]
[1722696284220,0.96581174,62238.0,62237.0,0.816134]
[1722696284427,0.81931174,62238.0,62237.0,1.269986]
[1722696284627,0.00231174,62238.0,62237.0,1.269986]
[1722696284862,0.00231174,62238.0,62237.0,1.27417889]
[1722696285407,0.00231174,62238.0,62237.0,0.95282689]
[1722696286468,0.00231174,62238.0,62237.0,0.89732689]
[1722696287258,0.00231174,62238.0,62237.0,0.57597489]
[1722696287554,0.00231174,62238.0,62237.0,0.49473055]
[1722696288735,0.00231174,62238.0,62237.0,0.81608255]
[1722696289008,0.00231174,62238.0,62237.0,0.82031351]
[1722696290994,0.00231174,62238.0,62237.0,0.49896151]
[1722696291199,0.00231174,62238.0,62237.0,0.49472644]
[1722696291399,0.54933174,62238.0,62237.0,0.01269844]
[1722696291889,0.160676,62237.0,62233.0,0.17067787]
[1722696292100,0.07875194,62234.0,62233.0,0.160685]
[1722696292904,0.00231174,62238.0,62234.0,0.077]
[1722696293124,0.00031174,62238.0,62236.0,0.160677]
[1722696293335,0.00031174,62238.0,62237.0,0.00134825]
[1722696293843,0.00031174,62238.0,62236.0,0.00134825]
[1722696295518,0.16298574,62238.0,62236.0,0.00134825]
[1722696295941,0.16298574,62238.0,62235.0,0.16202925]
[1722696296523,0.16098574,62238.0,62235.0,0.16202925]
[1722696296723,0.16298574,62238.0,62235.0,0.16202925]
[1722696297104,0.16098574,62238.0,62235.0,0.16202925]
[1722696297304,0.16298574,62238.0,62235.0,0.16202925]
[1722696298270,0.16298574,62238.0,62235.0,0.00134825]
[1722696298484,0.160676,62237.0,62235.0,0.00134825]
[1722696299827,0.160676,62237.0,62235.0,0.00234825]
[1722696300031,0.161676,62237.0,62235.0,0.00234825]
[1722696300899,0.161676,62237.0,62235.0,0.001]
[1722696301100,0.001,62237.0,62236.0,0.00134825]
[1722696302055,0.001,62237.0,62235.0,0.001]
[1722696302056,0.001,62237.0,62235.0,0.00134825]
[1722696302429,0.161676,62237.0,62236.0,0.001]
[1722696302644,0.483028,62237.0,62236.0,0.001]
[1722696302853,1.18433924,62237.0,62236.0,0.001]
[1722696303080,0.74219762,62237.0,62231.0,0.216191]
[1722696303288,0.160682,62235.0,62231.0,0.216191]
[1722696303487,0.67381375,62236.0,62232.0,0.01272649]
[1722696303488,0.31814324,62234.0,62232.0,0.01272649]
[1722696303691,0.15745924,62234.0,62232.0,0.17341449]
[1722696303916,0.35567451,62236.0,62235.0,0.803405]
[1722696303917,0.11624157,62236.0,62235.0,0.803405]
[1722696304068,0.11624157,62236.0,62235.0,0.858905]
[1722696304396,0.11624157,62236.0,62235.0,0.87585102]
[1722696304532,0.11624157,62236.0,62235.0,0.95845102]
[1722696304728,0.11624157,62236.0,62235.0,1.02435102]
[1722696305336,0.005,62237.0,62236.0,0.803392]
[1722696305576,0.005,62237.0,62236.0,0.951892]
[1722696305731,0.00031174,62238.0,62237.0,0.80338]
[1722696306194,0.00031174,62238.0,62237.0,0.82031484]
[1722696307742,0.00231174,62238.0,62237.0,0.82031484]
[1722696311317,0.00231174,62238.0,62237.0,0.49896284]
[1722696311666,0.00231174,62238.0,62237.0,0.49472913]
[1722696311871,0.00231174,62238.0,62237.0,0.49893607]
[1722696312551,0.00231174,62238.0,62237.0,0.49470905]
[1722696312753,0.00231174,62238.0,62237.0,0.50461505]
[1722696312965,0.00231174,62238.0,62237.0,0.96589537]
[1722696313416,0.00231174,62238.0,62237.0,1.35184737]
[1722696313823,0.00231174,62238.0,62237.0,1.03049537]
[1722696314239,0.00231174,62238.0,62237.0,1.35184737]
[1722696314447,0.00231174,62238.0,62237.0,1.45609699]
[1722696314860,0.00231174,62238.0,62237.0,1.13474499]
[1722696315239,0.00231174,62238.0,62237.0,1.45609699]
[1722696315445,0.00231174,62238.0,62237.0,1.13474499]
[1722696316562,0.00189174,62238.0,62237.0,1.13474499]
[1722696317086,0.08064368,62238.0,62237.0,1.13474499]
[1722696317218,0.08064368,62238.0,62237.0,0.80916559]
[1722696317429,0.08064368,62238.0,62237.0,0.58904329]
[1722696317628,0.08064368,62238.0,62237.0,0.91039529]
[1722696317832,0.08064368,62238.0,62237.0,0.90616797]
[1722696318057,0.08064368,62238.0,62237.0,0.58481597]
[1722696318258,0.08064368,62238.0,62237.0,0.02258797]
[1722696318583,0.08064368,62238.0,62237.0,0.009906]
[1722696318909,0.08064368,62238.0,62235.0,0.217093]
[1722696319110,0.08147368,62238.0,62237.0,0.01268197]
[1722696319302,0.08147368,62238.0,62236.0,0.17336416]
[1722696319468,0.08147368,62238.0,62237.0,0.01268264]
[1722696319469,0.22657368,62238.0,62237.0,0.01268264]
[1722696319695,1.50874692,62238.0,62237.0,0.01268264]
[1722696319842,1.62723381,62238.0,62237.0,0.01268264]
[1722696320048,1.190849,62236.0,62235.0,0.000913]
[1722696320259,1.5830367,62236.0,62235.0,0.000913]
[1722696321294,1.5830367,62236.0,62235.0,0.001913]
[1722696321295,1.5890367,62236.0,62235.0,0.001913]
[1722696321510,1.58948198,62236.0,62235.0,0.001913]
[1722696322561,1.64498198,62236.0,62235.0,0.001913]
[1722696323007,3.63283898,62236.0,62235.0,0.001913]
[1722696323179,3.07833898,62236.0,62235.0,0.001913]
[1722696323587,3.08233898,62236.0,62235.0,0.002913]
[1722696324110,2.80433397,62236.0,62235.0,0.002913]
[1722696324556,3.08233898,62236.0,62235.0,0.002913]
[1722696324995,3.08112354,62236.0,62235.0,0.002913]
[1722696325452,3.02562354,62236.0,62235.0,0.002913]
[1722696326090,2.70426654,62236.0,62235.0,0.002913]
[1722696326305,2.8006246,62236.0,62235.0,0.002913]
[1722696326509,2.60954981,62236.0,62235.0,0.002913]
[1722696326716,2.7045796,62236.0,62235.0,0.002913]
[1722696326935,2.3832226,62236.0,62235.0,0.002913]
[1722696327145,1.67944751,62236.0,62235.0,0.056413]
[1722696327371,1.63927657,62236.0,62235.0,0.058413]
[1722696327595,1.16124157,62236.0,62235.0,0.058413]
[1722696327801,0.68274157,62236.0,62235.0,0.118813]
[1722696328005,0.67874157,62236.0,62235.0,0.117813]
[1722696328241,0.67874157,62236.0,62235.0,0.13241147]
[1722696328708,0.83941957,62236.0,62235.0,0.13241147]
[1722696328931,0.83941957,62236.0,62235.0,0.29309247]
[1722696328932,0.67874157,62236.0,62235.0,0.29309247]
[1722696329134,0.67874157,62236.0,62235.0,0.278494]
[1722696329285,0.67474157,62236.0,62235.0,0.23757689]
[1722696329537,0.68074157,62236.0,62235.0,0.23757689]
[1722696329775,0.67674157,62236.0,62235.0,0.23657689]
[1722696330917,0.67874157,62236.0,62235.0,0.23657689]
[1722696331536,0.67874157,62236.0,62235.0,0.07589589]
[1722696335009,0.12424157,62236.0,62235.0,0.07589589]
[1722696335838,0.28491957,62236.0,62235.0,0.01549589]
[1722696337119,0.12424157,62236.0,62235.0,0.01549589]
[1722696337522,0.12424157,62236.0,62235.0,0.01707028]
[1722696338552,0.12424157,62236.0,62235.0,0.17617689]
[1722696339415,0.12424157,62236.0,62235.0,0.01549589]
[1722696339843,0.12424157,62236.0,62235.0,0.01707028]
[1722696341013,0.12424157,62236.0,62235.0,0.01549589]
[1722696342442,0.12424157,62236.0,62235.0,0.17617689]
[1722696342644,0.67874157,62236.0,62235.0,0.63863889]
[1722696342850,0.12424157,62236.0,62235.0,0.63863889]
[1722696343793,0.11624157,62236.0,62235.0,0.31727689]
[1722696344024,0.11624157,62236.0,62235.0,0.31927689]
[1722696347495,0.11624157,62236.0,62235.0,0.15859589]
[1722696347706,0.27691957,62236.0,62235.0,0.15859589]
[1722696347916,0.11624157,62236.0,62235.0,0.15859589]
[1722696348121,0.67074157,62236.0,62235.0,0.15859589]
[1722696349623,0.67074157,62236.0,62235.0,0.31927689]
[1722696349831,0.52424157,62236.0,62235.0,0.31927689]
[1722696350000,0.11624157,62236.0,62235.0,0.31927689]
[1722696350419,0.11624157,62236.0,62235.0,0.64063889]
[1722696352030,0.11624157,62236.0,62235.0,0.15859589]
[1722696352227,0.11624157,62236.0,62235.0,0.09579589]
[1722696352572,0.11624157,62236.0,62235.0,0.25647689]
[1722696352779,0.11624157,62236.0,62235.0,0.09579589]
[1722696353183,0.11624157,62236.0,62235.0,0.25647689]
[1722696353383,0.11624157,62236.0,62235.0,0.57783889]
[1722696353606,0.11624157,62236.0,62235.0,0.89920089]
[1722696353793,0.11624157,62236.0,62235.0,0.96200089]
[1722696355125,0.11624157,62236.0,62235.0,0.01749589]
[1722696355126,0.75573581,62236.0,62235.0,0.01749589]
[1722696355477,1.54294981,62236.0,62235.0,0.002913]
[1722696355685,0.96231128,62236.0,62235.0,0.002913]
[1722696355890,0.96231128,62236.0,62235.0,0.058313]
[1722696355891,0.59278268,62236.0,62235.0,0.058313]
[1722696356117,0.59278268,62236.0,62235.0,0.07085175]
[1722696356118,0.81893581,62236.0,62235.0,0.07085175]
[1722696356323,0.43437881,62236.0,62235.0,0.056313]
[1722696356571,0.60327657,62236.0,62235.0,0.000913]
[1722696356779,0.60327657,62236.0,62235.0,0.01545175]
[1722696356977,0.59827657,62236.0,62235.0,0.01545175]
[1722696357211,0.59827657,62236.0,62235.0,0.000913]
[1722696357443,0.60827657,62236.0,62235.0,0.001913]
[1722696357666,0.27891957,62236.0,62235.0,0.01547307]
[1722696357880,0.27891957,62236.0,62235.0,0.000913]
[1722696357881,0.60027657,62236.0,62235.0,0.000913]
[1722696358091,0.60527657,62236.0,62235.0,0.01547307]
[1722696358312,0.60527657,62236.0,62235.0,0.000913]
[1722696358521,0.60527657,62236.0,62235.0,0.01546863]
[1722696358692,0.60527657,62236.0,62235.0,0.000913]
[1722696358974,0.60527657,62236.0,62235.0,0.0172134]
[1722696359201,0.60527657,62236.0,62235.0,0.000913]
[1722696359420,0.60527657,62236.0,62235.0,0.0172134]
[1722696359617,0.60527657,62236.0,62235.0,0.000913]
[1722696359810,0.60527657,62236.0,62235.0,0.01721364]
[1722696359995,0.60527657,62236.0,62235.0,0.000913]
[1722696360248,0.12324157,62236.0,62235.0,0.0172135]
[1722696360471,0.28391957,62236.0,62235.0,0.000913]
[1722696360683,0.60527657,62236.0,62235.0,0.0172135]
[1722696360896,0.60527657,62236.0,62235.0,0.000913]
[1722696361102,0.60527657,62236.0,62235.0,0.01721234]
[1722696361499,0.489035,62236.0,62235.0,0.01721234]
[1722696362304,0.489035,62236.0,62235.0,0.000913]
[1722696362519,0.489035,62236.0,62235.0,0.01721234]
[1722696362720,0.489035,62236.0,62235.0,0.000913]
[1722696363154,0.489035,62236.0,62235.0,0.01721234]
[1722696363549,0.635535,62236.0,62235.0,0.01721234]
[1722696363973,0.314178,62236.0,62235.0,0.01721234]
[1722696364419,0.489035,62236.0,62235.0,0.01721234]
[1722696365165,0.810392,62236.0,62235.0,0.01721234]
[1722696365369,0.874592,62236.0,62235.0,0.000913]
[1722696365771,1.04155813,62236.0,62235.0,0.000913]
[1722696366996,1.92047995,62236.0,62235.0,0.000913]
[1722696367121,2.01690178,62236.0,62235.0,0.000913]
[1722696367325,2.04102085,62236.0,62235.0,0.000913]
[1722696367533,1.92047995,62236.0,62235.0,0.000913]
[1722696367746,2.01690618,62236.0,62235.0,0.000913]
[1722696367937,1.92047995,62236.0,62235.0,0.000913]
[1722696368143,2.04101274,62236.0,62235.0,0.000913]
[1722696368368,2.47497995,62236.0,62235.0,0.000913]
[1722696368570,1.94347995,62236.0,62235.0,0.000913]
[1722696370213,1.94255088,62236.0,62235.0,0.000913]
[1722696373661,1.68004557,62236.0,62235.0,0.000913]
[1722696373992,1.94287623,62236.0,62235.0,0.000913]
[1722696374232,2.90637623,62236.0,62235.0,0.000913]
[1722696375367,3.02691005,62236.0,62235.0,0.000913]
[1722696375599,2.90637623,62236.0,62235.0,0.000913]
[1722696377215,1.94287623,62236.0,62235.0,0.000913]
[1722696377438,2.26423323,62236.0,62235.0,0.000913]
[1722696378085,2.26223323,62236.0,62235.0,0.000913]
[1722696378287,2.25723323,62236.0,62235.0,0.000913]
[1722696378463,1.93987623,62236.0,62235.0,0.001913]
[1722696378816,1.94787623,62236.0,62235.0,0.002913]
[1722696380343,2.27923323,62236.0,62235.0,0.002913]
[1722696380496,3.36123323,62236.0,62235.0,0.002913]
[1722696380678,3.46008197,62236.0,62235.0,0.002913]
[1722696380874,3.58323072,62236.0,62235.0,0.002913]
[1722696381076,3.78859429,62236.0,62235.0,0.002913]
[1722696381478,3.78059429,62236.0,62235.0,0.001913]
[1722696381682,3.79659429,62236.0,62235.0,0.000913]
[1722696381956,3.81059429,62236.0,62235.0,0.001913]
[1722696382159,3.81659429,62236.0,62235.0,0.002913]
[1722696383561,4.17799379,62236.0,62235.0,1e-06]
[1722696383774,7.06424899,62236.0,62235.0,1e-06]
[1722696383979,5.28812899,62236.0,62235.0,1e-06]
[1722696384187,7.44324899,62236.0,62235.0,1e-06]
[1722696384387,5.81875434,62236.0,62235.0,1e-06]
[1722696384719,5.80475434,62236.0,62235.0,1e-06]
[1722696384916,1.68568,62220.0,62219.0,0.000913]
[1722696385142,3.14971245,62220.0,62219.0,0.000913]
[1722696385553,3.2700254,62220.0,62219.0,0.000913]
[1722696385949,3.27002526,62220.0,62219.0,0.000913]
[1722696386149,3.28602526,62220.0,62219.0,0.000913]
[1722696386306,3.18602526,62220.0,62219.0,0.000913]
[1722696386505,3.20653108,62220.0,62219.0,0.000913]
[1722696387515,3.23785536,62220.0,62219.0,0.000913]
[1722696387846,3.2371545,62220.0,62219.0,0.000913]
[1722696388082,3.16501159,62220.0,62219.0,0.000913]
[1722696388279,3.26123022,62220.0,62219.0,0.000913]
[1722696388459,3.16501159,62220.0,62219.0,0.000913]
[1722696389466,3.23712373,62220.0,62219.0,0.000913]
[1722696390496,3.38362373,62220.0,62219.0,0.000913]
[1722696390675,4.12851159,62220.0,62219.0,0.000913]
[1722696391092,3.75167159,62220.0,62219.0,0.000913]
[1722696391296,3.55204232,62220.0,62219.0,0.000913]
[1722696391528,3.29095118,62220.0,62219.0,0.000913]
[1722696392135,3.60714959,62220.0,62219.0,0.000913]
[1722696393653,3.91610683,62220.0,62219.0,0.000913]
[1722696393879,2.95260683,62220.0,62219.0,0.000913]
[1722696394084,3.27404683,62220.0,62219.0,0.000913]
[1722696394291,3.37026546,62220.0,62219.0,0.000913]
[1722696394513,3.27404683,62220.0,62219.0,0.000913]
[1722696394936,3.25084616,62220.0,62219.0,0.000913]
[1722696395373,3.1710883,62220.0,62219.0,0.000913]
[1722696395573,3.33388759,62220.0,62219.0,0.000913]
[1722696395749,3.34788759,62220.0,62219.0,0.000913]
[1722696396558,3.02644759,62220.0,62219.0,0.000913]
[1722696397186,3.32385986,62220.0,62219.0,0.000913]
[1722696398220,3.00241986,62220.0,62219.0,0.000913]
[1722696398412,2.75977706,62220.0,62219.0,0.000913]
[1722696398625,2.75697773,62220.0,62219.0,0.000913]
[1722696398828,2.75977683,62220.0,62219.0,0.000913]
[1722696399601,5.66039683,62220.0,62219.0,0.000913]
[1722696399802,5.56039683,62220.0,62219.0,0.000913]
[1722696400428,5.66039683,62220.0,62219.0,0.000913]
[1722696401230,2.90197683,62220.0,62219.0,0.000913]
[1722696403320,2.82157683,62220.0,62219.0,0.000913]
[1722696403528,2.84015193,62220.0,62219.0,0.000913]
[1722696405712,2.98665193,62220.0,62219.0,0.000913]
[1722696407094,5.88727193,62220.0,62219.0,0.000913]
[1722696410640,6.20871193,62220.0,62219.0,0.000913]
[1722696410845,6.28911193,62220.0,62219.0,0.000913]
[1722696411348,6.41684325,62220.0,62219.0,0.000913]
[1722696411541,6.4145505,62220.0,62219.0,0.000913]
[1722696412023,6.4005505,62220.0,62219.0,0.000913]
[1722696412227,6.3865505,62220.0,62219.0,0.000913]
[1722696412494,6.7445505,62220.0,62219.0,0.000913]
[1722696412704,3.6774305,62220.0,62219.0,0.000913]
[1722696413659,4.3774305,62220.0,62219.0,0.000913]
[1722696413854,4.0774305,62220.0,62219.0,0.000913]
[1722696414409,3.3774305,62220.0,62219.0,0.000913]
[1722696415246,3.37755495,62220.0,62219.0,0.000913]
[1722696415453,3.38755495,62220.0,62219.0,0.000913]
[1722696415726,3.37755495,62220.0,62219.0,0.000913]
[1722696416127,3.29715495,62220.0,62219.0,0.000913]
[1722696416322,3.28715495,62220.0,62219.0,0.000913]
[1722696416483,3.22535495,62220.0,62219.0,0.000913]
[1722696417571,3.66135495,62220.0,62219.0,0.000913]
[1722696417776,6.64347495,62220.0,62219.0,0.000913]
[1722696418109,3.22618495,62220.0,62219.0,0.000913]
[1722696418312,3.2189801,62220.0,62219.0,0.000913]
[1722696418655,2.87347986,62220.0,62219.0,0.145313]
[1722696418855,2.77722672,62220.0,62219.0,0.145313]
[1722696419190,2.61017393,62220.0,62219.0,0.145313]
[1722696419376,2.28254044,62220.0,62219.0,0.145313]
[1722696419643,2.23161746,62220.0,62219.0,0.145313]
[1722696420232,2.13161746,62220.0,62219.0,0.145313]
[1722696420642,2.1492212,62220.0,62219.0,0.145313]
[1722696420851,1.8277812,62220.0,62219.0,0.145313]
[1722696421056,2.1492212,62220.0,62219.0,0.145313]
[1722696421463,2.26653852,62220.0,62219.0,0.145313]
[1722696422120,2.17329121,62220.0,62219.0,0.145313]
[1722696422510,2.10108118,62220.0,62219.0,0.145313]
[1722696422682,2.19432866,62220.0,62219.0,0.145313]
[1722696423523,1.96915256,62220.0,62219.0,0.145313]
[1722696423893,1.94517884,62220.0,62219.0,0.145313]
[1722696424550,1.87288866,62220.0,62219.0,0.145313]
[1722696425358,1.87288866,62220.0,62219.0,0.000913]
[1722696425359,2.19398863,62220.0,62219.0,0.000913]
[1722696429186,2.19398863,62220.0,62219.0,0.078713]
[1722696431079,2.19398863,62220.0,62219.0,0.000913]
[1722696432578,2.57497134,62220.0,62219.0,0.000913]
[1722696434290,2.193282,62220.0,62219.0,0.000913]
[1722696434497,2.25302228,62220.0,62219.0,0.066113]
[1722696434949,2.57446228,62220.0,62219.0,0.066113]
[1722696435155,2.25302228,62220.0,62219.0,0.143913]
[1722696435386,2.37363709,62220.0,62219.0,0.143913]
[1722696435600,0.9562208,62220.0,62219.0,0.304635]
[1722696435805,0.88385992,62220.0,62219.0,0.947525]
[1722696436219,0.88385992,62220.0,62219.0,0.95846389]
[1722696436866,0.86985992,62220.0,62219.0,0.95846389]
[1722696437063,0.86985992,62220.0,62219.0,0.63701889]
[1722696437295,0.86985992,62220.0,62219.0,0.15485189]
[1722696437296,1.35575916,62220.0,62219.0,0.15485189]
[1722696437495,1.83091916,62220.0,62219.0,0.078713]
[1722696437702,1.79588803,62220.0,62219.0,0.078713]
[1722696437922,1.56878988,62220.0,62219.0,0.078713]
[1722696438133,1.84590862,62220.0,62219.0,0.078713]
[1722696438338,1.84590861,62220.0,62219.0,0.078713]
[1722696438580,1.52446861,62220.0,62219.0,0.078713]
[1722696438778,1.51946861,62220.0,62219.0,0.078713]
[1722696439051,1.84290861,62220.0,62219.0,0.078713]
[1722696439268,1.84190861,62220.0,62219.0,0.078713]